[Event "15th Paleochora Open 2022"]
[Site "Paleochora"]
[Date "2022.07.17"]
[Round "1.18"]
[White "Wolf, Ulrich Martin"]
[Black "Nevednichy, Vladislav"]
[Result "0-1"]
[ECO "A14"]
[WhiteElo "2174"]
[BlackElo "2473"]
[Annotator "TA"]
[PlyCount "66"]
[EventDate "2022.07.17"]
[EventType "swiss"]
[EventCountry "GRE"]
[SourceTitle "playchess.com"]
[Source "ChessBase"]
[SourceQuality "1"]
[TimeControl "40/5400+30:900+30"]

{[%evp 18,66,8,-7,20,-30,27,6,14,13,14,14,32,4,14,-3,-18,-6,-2,-95,-75,-87,-81,-93,-72,-91,-29,-66,-70,-78,-64,-72,-45,-64,-69,-103,-109,-110,-95,-95,-95,-94,-95,-95,-95,-117,-119,-111,-107,-357,-312]} 1. Nf3 {[%emt 0:01:22]} d5 {[%emt 0:00:12]} 2. c4 {[%emt 0:00:21]} e6 {[%emt 0:00:23]} 3. b3 {[%emt 0:00:38]} Nf6 {[%emt 0:00:27]} 4. Bb2 {[%emt 0:00:15]} b6 {[%emt 0:00:49]} 5. g3 {[%emt 0:00:29]} Bb7 {[%emt 0:00:07]} 6. Bg2 {[%emt 0:00:15]} Nbd7 {[%emt 0:00:22]} 7. O-O {[%emt 0:00:23]} Be7 {[%emt 0:01:14]} 8. d3 {[%emt 0:01:29]} O-O {[%emt 0:00:14]} 9. Qc2 {[%emt 0:01:39]} c5 {[%emt 0:00:54]} 10. Nbd2 {[%emt 0:05:10]} Qc7 {[%emt 0:06:05] A14: English Opening: 1...e6 with b3 by White.} 11. Rac1 {[%emt 0:03:00]} (11. cxd5 $142 Nxd5 12. a3) 11... Rad8 {[%emt 0:04:49]} ({Black should play} 11... d4) 12. e3 {[%emt 0:02:49]} Qb8 {[%emt 0:01:32] [#] The position is equal.} 13. cxd5 $146 {[%emt 0:02:45]} ({Predecessor:} 13. Rfd1 e5 14. cxd5 Nxd5 15. Qb1 Rfe8 16. Nc4 Bf8 17. Qa1 f6 18. a3 Kh8 19. Nh4 {1-0 (49) Kriebel,T (2365)-Borisenko,V (2298) Budva 2013}) 13... Nxd5 {[%emt 0:00:59]} 14. a3 {[%emt 0:00:48]} Rc8 {[%emt 0:02:31]} 15. Qb1 {[%emt 0:02:12]} (15. e4 $5 {[%cal Re4d5]} N5f6 16. Nc4 $14) 15... Rfd8 {[%emt 0:00:09]} (15... Bf6 {is more complex.} 16. b4 cxb4 17. axb4 Nc3) 16. Qa1 {[%emt 0:01:56]} Bf8 {[%emt 0:00:34]} 17. e4 {[%emt 0:02:57]} Ne7 {[%emt 0:04:22]} 18. Ne5 {[%emt 0:03:50] [#]} (18. a4 $11 {keeps the balance.}) 18... Nxe5 $1 $17 {[%emt 0:01:04]} 19. Bxe5 {[%emt 0:00:55]} Qa8 {[%emt 0:00:01]} 20. Qb1 {[%emt 0:03:49]} Nc6 {[%emt 0:01:26]} 21. Bc3 {[%emt 0:01:32] [#]} Nd4 {[%emt 0:02:58]} ({Better is} 21... Ba6 $1 $17 {[%cal Ra6d3]} 22. Qb2 (22. Nc4 b5 $17) 22... Bxd3) 22. Bxd4 {[%emt 0:01:31]} Rxd4 {[%emt 0:01:10]} 23. Nf3 {[%emt 0:01:09]} Rd6 {[%emt 0:01:05]} 24. Rfd1 {[%emt 0:11:23]} Rcd8 {[%emt 0:00:44]} 25. Bf1 {[%emt 0:00:44]} g6 {[%emt 0:01:27]} 26. Nd2 {[%emt 0:00:41]} Bh6 {[%emt 0:02:56]} 27. Nc4 {[%emt 0:16:36]} Rd4 {[%emt 0:02:53]} 28. Ne3 {[%emt 0:01:26]} Qb8 {[%emt 0:06:14]} 29. b4 {[%emt 0:02:31]} cxb4 {[%emt 0:04:19] Black is more active.} 30. axb4 {[%emt 0:01:36]} b5 {[%emt 0:00:10]} 31. Rc5 {[%emt 0:02:58]} a6 {[%emt 0:01:37]} 32. Nc2 {[%emt 0:01:32]} R4d7 {[%emt 0:00:13][%cal Ob7e4]} 33. f4 $2 {[%emt 0:04:06] [#]} (33. Be2 $17 {was called for.}) 33... Bxe4 $1 {[%emt 0:00:35][%mdl 512] Weighted Error Value: White=0.36/Black=0.14 (very precise)} 0-1

[Event "15th Paleochora Open 2022"]
[Site "Paleochora"]
[Date "2022.07.18"]
[Round "2.1"]
[White "Yilmaz, Mustafa"]
[Black "Barrish, Daniel"]
[Result "1-0"]
[ECO "D27"]
[WhiteElo "2634"]
[BlackElo "2283"]
[Annotator "TA"]
[PlyCount "109"]
[EventDate "2022.07.17"]
[EventType "swiss"]
[EventCountry "GRE"]
[SourceTitle "playchess.com"]
[Source "ChessBase"]
[SourceQuality "1"]
[TimeControl "40/5400+30:900+30"]

{[%evp 11,109,33,36,14,14,17,35,24,52,47,51,50,70,45,72,70,75,36,50,16,17,29,29,12,12,-7,-2,-19,-1,-1,0,0,0,0,0,-8,-6,-7,0,0,0,-10,0,0,0,-6,0,0,6,8,8,8,7,0,11,0,0,0,0,0,0,0,1,0,0,0,58,54,62,65,87,94,217,195,234,230,293,284,331,337,294,119,127,50,122,68,1852,1791,1710,1628,1593,1060,6535,5089,2369,2036,29989,29990,29990,29991]} 1. d4 {[%emt 0:00:04]} d5 {[%emt 0:00:16]} 2. c4 {[%emt 0:00:28]} dxc4 {[%emt 0:00:12]} 3. Nf3 {[%emt 0:00:38]} Nf6 {[%emt 0:00:12]} 4. e3 {[%emt 0:00:06]} e6 {[%emt 0:00:07]} 5. Bxc4 {[%emt 0:00:07]} c5 {[%emt 0:00:18]} 6. O-O {[%emt 0:00:43]} a6 {[%emt 0:00:09]} 7. Be2 {[%emt 0:04:19] D27: Queen's Gambit Accepted: Classical main line: 7 e4!? and 7 a4.} cxd4 {[%emt 0:01:21]} 8. Nxd4 {[%emt 0:03:45]} Be7 {[%emt 0:02:35]} 9. b3 {[%emt 0:04:58] [#] White is slightly better.} e5 $146 {[%emt 0:18:19]} ({Predecessor:} 9... O-O 10. Bb2 b5 11. Nd2 Bb7 12. a4 Nc6 13. axb5 Nxd4 14. Bxd4 axb5 15. Bf3 Qd7 16. h3 {½-½ (58) Mamedyarov,S (2759)-So,W (2776) Stavanger 2022}) 10. Nf3 {[%emt 0:01:08]} Qc7 {[%emt 0:01:19]} 11. Bb2 {[%emt 0:05:57]} Nc6 {[%emt 0:02:28]} 12. Nbd2 {[%emt 0:02:59]} (12. Qc2 $5 {[%cal Rf3e5]}) 12... Be6 {[%emt 0:04:07]} 13. Rc1 {[%emt 0:06:59][%cal Of3e5]} Nd7 {[%emt 0:05:55]} 14. Bc4 {[%emt 0:01:07]} Qd6 {[%emt 0:05:19]} 15. Ne4 {[%emt 0:11:41]} Qxd1 {[%emt 0:00:11]} 16. Rfxd1 {[%emt 0:00:02] Strongly threatening Bxe6.} Bxc4 {[%emt 0:00:34]} 17. Rxc4 {[%emt 0:02:10]} f6 {[%emt 0:01:58]} 18. Nh4 {[%emt 0:11:27] Hoping for Nf5.} g6 {[%emt 0:12:33] Against Nf5} 19. Rcc1 {[%emt 0:02:52]} Rd8 {[%emt 0:14:15]} 20. f4 {[%emt 0:03:38]} O-O {[%emt 0:10:02]} 21. Nf3 {[%emt 0:06:06]} exf4 {[%emt 0:02:52]} 22. exf4 {[%emt 0:00:28]} f5 {[%emt 0:02:19]} 23. Nf2 {[%emt 0:03:10]} Nf6 {[%emt 0:00:52]} 24. Re1 {[%emt 0:03:08][%cal Oc1c6] Rxc6! is the strong threat.} Nd5 {[%emt 0:02:56]} 25. g3 {[%emt 0:01:41]} Bb4 {[%emt 0:01:08]} 26. Re6 {[%emt 0:01:33]} Rfe8 {[%emt 0:00:42]} 27. Rxe8+ {[%emt 0:00:57]} Rxe8 {[%emt 0:00:05]} 28. Ne5 {[%emt 0:01:06]} Nce7 {[%emt 0:02:39]} 29. Nfd3 {[%emt 0:04:42]} Rc8 {[%emt 0:00:16]} 30. Rxc8+ {[%emt 0:12:27]} Nxc8 {[%emt 0:00:06]} 31. Nxb4 {[%emt 0:00:24]} Nxb4 $11 {[%emt 0:00:05][%mdl 4096] Endgame KBN-KNN} 32. a3 {[%emt 0:00:12]} Nd5 {[%emt 0:02:08]} 33. Kf2 {[%emt 0:00:51]} Nd6 {[%emt 0:01:20]} 34. Ke2 {[%emt 0:01:26]} Ne4 {[%emt 0:01:21]} 35. Kd3 {[%emt 0:00:33]} Kf8 {[%emt 0:00:37]} 36. Kd4 {[%emt 0:00:57]} Nc7 {[%emt 0:00:52]} 37. a4 {[%emt 0:02:25]} Ke7 {[%emt 0:01:50]} 38. Nd3 {[%emt 0:01:11]} Ne6+ {[%emt 0:01:00]} ({Better is} 38... Nd2 $11) 39. Kd5 $14 {[%emt 0:00:44]} Nc7+ {[%emt 0:00:56]} 40. Ke5 {[%emt 0:00:00]} b6 {[%emt 0:00:00]} 41. Bc1 {[%emt 0:03:59][%cal Og3g4]} Kd7 {[%emt 0:11:54]} (41... Ne6 $16 {was called for.}) 42. Be3 $18 {[%emt 0:02:08]} b5 {[%emt 0:04:13]} 43. a5 $1 {[%emt 0:04:03]} Ne6 {[%emt 0:00:55]} 44. g4 $1 {[%emt 0:02:53][%cal Bg3g4,Bg4g5][%mdl 32]} Nd6 {[%emt 0:00:12]} 45. g5 {[%emt 0:03:04]} Ne4 {[%emt 0:01:14] [#]} 46. h4 {[%emt 0:00:54]} (46. Nb4 $1 $18 {[%cal Rb4a6] and the rest is easy.}) 46... Ke7 {[%emt 0:02:55] [#]} 47. Nb4 {[%emt 0:01:09]} (47. Ba7 $1 $16) 47... N4c5 {[%emt 0:00:42]} (47... N6c5 $1 $14) 48. Nd5+ $16 {[%emt 0:00:30]} Kf7 $2 {[%emt 0:00:15][%mdl 8192]} (48... Kd7 $14) 49. Bxc5 $18 {[%emt 0:00:54]} Nxc5 {[%emt 0:00:06] KN-KN} 50. b4 {[%emt 0:00:11]} Nd3+ {[%emt 0:00:51]} 51. Kd6 {[%emt 0:01:18]} Ne1 {[%emt 0:00:51]} 52. Nc7 {[%emt 0:00:26]} Nd3 {[%emt 0:00:23]} 53. Nxa6 {[%emt 0:00:05] Intending Nc7 and mate.} Nxf4 {[%emt 0:00:04]} 54. Nc7 {[%emt 0:00:17]} Nd3 {[%emt 0:00:23]} 55. a6 {[%emt 0:00:09] Weighted Error Value: White=0.10 (very precise) /Black=0.33} 1-0

[Event "15th Paleochora Open 2022"]
[Site "Paleochora"]
[Date "2022.07.18"]
[Round "2.2"]
[White "Kosmas-Lekkas, Dimitrios"]
[Black "Bernadskiy, Vitaliy"]
[Result "0-1"]
[ECO "C92"]
[WhiteElo "2291"]
[BlackElo "2610"]
[Annotator "TA"]
[PlyCount "142"]
[EventDate "2022.07.17"]
[EventType "swiss"]
[EventCountry "GRE"]
[SourceTitle "playchess.com"]
[Source "ChessBase"]
[SourceQuality "1"]
[TimeControl "40/5400+30:900+30"]

{[%evp 16,142,22,24,34,43,66,45,43,41,45,34,27,30,22,20,31,35,18,0,0,0,5,15,10,0,0,0,0,0,0,0,0,0,0,0,0,-3,0,0,0,-7,0,-55,-6,-6,0,0,0,0,0,-22,-22,-22,-22,-22,-22,-22,-22,-23,0,0,0,-3,-4,-16,-16,-41,0,0,0,0,0,0,0,0,0,-8,-8,0,0,0,0,0,0,-8,0,-8,0,0,0,-8,-8,-8,-8,-8,-8,-8,-8,-12,0,-8,-8,-8,-8,-15,-16,-17,-17,-19,-18,-79,-87,-416,-400,-393,-388,-563,-553,-463,-399,-835,-784,-845,-933,-799,-654,-29987,-29987]} 1. e4 {[%emt 0:00:06]} e5 {[%emt 0:00:04]} 2. Nf3 {[%emt 0:00:08]} Nc6 {[%emt 0:00:06]} 3. Bb5 {[%emt 0:00:09][%cal Bf1b5,Bb5a4,Ba4b3][%mdl 32]} a6 {[%emt 0:00:26]} 4. Ba4 {[%emt 0:00:07]} Nf6 {[%emt 0:00:58]} 5. O-O {[%emt 0:00:29]} Be7 {[%emt 0:02:31]} 6. Re1 {[%emt 0:00:53]} b5 {[%emt 0:01:49]} 7. Bb3 {[%emt 0:00:47]} d6 {[%emt 0:00:07]} 8. c3 {[%emt 0:00:12]} O-O {[%emt 0:00:07]} 9. h3 {[%emt 0:00:05]} Rb8 {[%emt 0:02:39] C92: Closed Ruy Lopez: 9...Be6, Karpov and Flohr-Zaitsev Variations.} 10. d4 {[%emt 0:03:17]} exd4 {[%emt 0:00:06]} 11. cxd4 {[%emt 0:00:09]} d5 {[%emt 0:00:02] White is slightly better.} 12. exd5 {[%emt 0:06:53]} Nxd5 {[%emt 0:01:08]} 13. Nc3 {[%emt 0:03:11]} Nxc3 {[%emt 0:03:40]} 14. bxc3 {[%emt 0:00:10]} Bf5 {[%emt 0:01:41]} 15. Ne5 {[%emt 0:14:41]} Nxe5 {[%emt 0:01:01]} 16. Rxe5 {[%emt 0:00:17]} Bg6 {[%emt 0:00:07] [#]} 17. Qf3 $146 {[%emt 0:03:07]} ({Predecessor:} 17. Qg4 Bd6 18. Re2 Re8 19. Bg5 Qc8 20. Rae1 Rxe2 21. Rxe2 Qxg4 22. hxg4 Kf8 23. g3 {½-½ (34) Grela,K (2007)-Zeberski,J (2348) Wroclaw 2014}) 17... Bd6 {[%emt 0:03:00]} 18. Bg5 {[%emt 0:05:55]} Qc8 {[%emt 0:01:59]} 19. Re2 {[%emt 0:03:31]} c5 {[%emt 0:01:31]} 20. Bd5 {[%emt 0:01:19]} cxd4 {[%emt 0:09:10]} 21. cxd4 {[%emt 0:00:10]} Qf5 {[%emt 0:00:24]} 22. Qxf5 {[%emt 0:07:06]} Bxf5 {[%emt 0:00:04]} 23. Be7 {[%emt 0:00:41]} Bxe7 {[%emt 0:00:46]} 24. Rxe7 {[%emt 0:00:05]} Rbd8 {[%emt 0:00:10]} 25. Bb3 {[%emt 0:09:54]} Rxd4 {[%emt 0:02:16]} 26. Rae1 {[%emt 0:00:10][%cal Oe7f7] [#] Threatens to win with Rxf7!} Bg6 {[%emt 0:00:40]} 27. Ra7 {[%emt 0:00:18]} Rd6 {[%emt 0:00:07]} 28. Ree7 {[%emt 0:00:30]} h5 {[%emt 0:01:31]} 29. g4 {[%emt 0:03:43]} (29. h4 $11) 29... hxg4 {[%emt 0:01:24]} (29... Rf6 $15 {was preferrable.}) 30. hxg4 $11 {[%emt 0:00:06]} Rf6 {[%emt 0:00:25]} 31. Kg2 {[%emt 0:06:35]} Rd8 {[%emt 0:00:16]} 32. Re3 {[%emt 0:01:38]} Bb1 {[%emt 0:05:40]} 33. g5 {[%emt 0:06:05]} Rf5 {[%emt 0:01:25]} 34. g6 {[%emt 0:00:58]} Rg5+ {[%emt 0:00:12]} 35. Rg3 {[%emt 0:00:24]} Rxg3+ {[%emt 0:00:42]} 36. Kxg3 {[%emt 0:00:16]} Bxg6 {[%emt 0:00:07] With the idea ...Rd6.} 37. Rxa6 {[%emt 0:00:06][%mdl 4096] Endgame KRB-KRB} Kh7 {[%emt 0:02:07]} 38. Rb6 {[%emt 0:00:48]} Rd3+ {[%emt 0:00:07]} 39. Kf4 {[%emt 0:02:46]} Rd4+ {[%emt 0:00:08]} 40. Ke3 {[%emt 0:00:00]} Re4+ {[%emt 0:00:00]} 41. Kf3 {[%emt 0:01:21][%cal Ob6g6] [#] And now Rxg6! would win.} Rb4 {[%emt 0:03:05]} 42. Kg3 {[%emt 0:02:01]} f6 {[%emt 0:02:12]} 43. f3 {[%emt 0:07:08]} Bf5 {[%emt 0:03:06]} 44. Rd6 {[%emt 0:01:13]} Kg6 {[%emt 0:01:08]} 45. Rd8 {[%emt 0:01:42]} Kh6 {[%emt 0:01:54]} 46. Rd6 {[%emt 0:02:32]} Bh7 {[%emt 0:00:29]} 47. Rd8 {[%emt 0:02:26]} g5 {[%emt 0:01:05]} 48. Rb8 {[%emt 0:05:22]} Bb1 {[%emt 0:02:36]} 49. Rb6 {[%emt 0:06:13]} Kg6 {[%emt 0:00:36]} 50. Rb8 {[%emt 0:01:37]} Bd3 {[%emt 0:05:22]} 51. Rg8+ {[%emt 0:03:04]} Kf5 {[%emt 0:00:30]} 52. Re8 $1 {[%emt 0:00:14]} Kg6 {[%emt 0:03:33]} 53. Rg8+ {[%emt 0:00:05]} Kh7 {[%emt 0:00:02][%cal Ob4b3] ...Rxb3! is the strong threat.} 54. Rd8 {[%emt 0:00:10]} Bg6 {[%emt 0:00:17]} 55. Rb8 {[%emt 0:01:12]} f5 {[%emt 0:02:12]} 56. Rb6 {[%emt 0:05:37]} Bh5 {[%emt 0:01:30]} 57. Bc2 {[%emt 0:03:15]} Bg6 {[%emt 0:00:04] Hoping for ...f4+.} 58. Bb3 {[%emt 0:00:08]} Kg7 {[%emt 0:00:03]} 59. Rb7+ {[%emt 0:00:23]} Kh6 {[%emt 0:00:09]} 60. Rb8 {[%emt 0:00:33]} Bh5 {[%emt 0:02:44]} 61. Rh8+ {[%emt 0:00:44]} Kg6 {[%emt 0:00:05]} 62. Bd5 {[%emt 0:00:41]} Rh4 {[%emt 0:01:25]} 63. Rg8+ {[%emt 0:00:40]} (63. Re8 $11) 63... Kf6 $17 {[%emt 0:00:09]} 64. Kg2 $2 {[%emt 0:00:38][%mdl 8192] Loses the game.} (64. Rb8 $17) 64... Rd4 $19 {[%emt 0:00:18]} 65. Bc6 {[%emt 0:00:23]} b4 {[%emt 0:01:38] White must now prevent ...Rd6.} ({Not} 65... Rd2+ $2 66. Kg1 $19) 66. Ra8 {[%emt 0:00:30]} (66. Kf2 {was worth a try.} Rd2+ 67. Ke1 Rxa2 68. Rb8) 66... Rd2+ {[%emt 0:01:04]} 67. Kf1 {[%emt 0:00:34]} Bf7 {[%emt 0:00:32]} 68. Ra4 $2 {[%emt 0:00:47]} (68. Rf8 Ke7 69. Rb8) 68... Rb2 {[%emt 0:00:06]} 69. Bd7 {[%emt 0:00:13]} Bxa2 {[%emt 0:01:03]} 70. Ra6+ {[%emt 0:00:14]} Ke7 {[%emt 0:00:09] ( -> ...Bc4+)} 71. Bxf5 {[%emt 0:00:09]} Bc4+ {[%emt 0:00:03] Weighted Error Value: White=0.05 (flawless) /Black=0.04 (flawless)} 0-1

[Event "15th Paleochora Open 2022"]
[Site "Paleochora"]
[Date "2022.07.18"]
[Round "2.3"]
[White "Banikas, Hristos"]
[Black "Markidis, Konstantinos"]
[Result "1/2-1/2"]
[ECO "D45"]
[WhiteElo "2598"]
[BlackElo "2259"]
[Annotator "TA"]
[PlyCount "107"]
[EventDate "2022.07.17"]
[EventType "swiss"]
[EventCountry "GRE"]
[SourceTitle "playchess.com"]
[Source "ChessBase"]
[SourceQuality "1"]
[TimeControl "40/5400+30:900+30"]

{[%evp 25,107,4,13,-7,0,0,0,-10,-12,-8,-10,-11,-4,-4,-10,-3,-11,-25,55,47,48,54,63,47,33,45,35,35,30,13,17,20,26,37,57,49,93,87,82,83,91,42,95,65,70,8,8,8,75,75,44,54,189,177,180,178,183,168,265,253,301,259,273,266,270,264,281,270,291,291,291,120,127,74,73,59,59,-116,-116,-116,-196,-196,-196,-196]} 1. Nf3 {[%emt 0:00:17]} Nf6 {[%emt 0:00:28]} 2. c4 {[%emt 0:00:04]} e6 {[%emt 0:00:41]} 3. Nc3 {[%emt 0:00:04]} d5 {[%emt 0:03:07]} 4. d4 {[%emt 0:00:23]} c6 {[%emt 0:02:54]} 5. e3 {[%emt 0:01:54]} Nbd7 {[%emt 0:00:07]} 6. Qc2 {[%emt 0:03:37]} Bd6 {[%emt 0:00:09]} 7. Be2 {[%emt 0:00:06]} O-O {[%emt 0:00:42]} 8. O-O {[%emt 0:00:04]} Re8 {[%emt 0:03:16]} 9. Rd1 {[%emt 0:01:08]} Qe7 {[%emt 0:02:39]} 10. h3 {[%emt 0:03:56]} b6 {[%emt 0:01:26]} 11. e4 {[%emt 0:00:03]} dxe4 {[%emt 0:01:01]} 12. Nxe4 {[%emt 0:00:14]} Nxe4 {[%emt 0:00:39]} 13. Qxe4 {[%emt 0:00:04]} Bb7 {[%emt 0:01:38]} 14. Bg5 {[%emt 0:11:18] D45: Semi-Slav: 5 e3.} f6 {[%emt 0:07:22] [#]} 15. Be3 $146 {[%emt 0:06:27][%cal Oc4c5]} ({Predecessor:} 15. Bf4 Bxf4 16. Qxf4 c5 17. Qc7 Rab8 18. dxc5 Nxc5 19. Qxe7 Rxe7 20. b4 Ne4 21. Rac1 a5 {½-½ (31) Barnaure,V (2476)-Sasikiran,K (2677) Antalya 2017}) 15... Rad8 {[%emt 0:03:16]} 16. Rac1 {[%emt 0:00:25][%cal Oc4c5] The position is equal.} f5 {[%emt 0:09:55]} 17. Qh4 {[%emt 0:08:51]} Qxh4 {[%emt 0:06:03]} 18. Nxh4 {[%emt 0:00:04]} f4 {[%emt 0:03:18]} 19. Bd2 {[%emt 0:00:05][%cal Oc4c5]} c5 {[%emt 0:01:55]} 20. Bf3 {[%emt 0:13:33]} Bxf3 {[%emt 0:00:46]} 21. Nxf3 {[%emt 0:00:06]} a6 {[%emt 0:07:03]} (21... e5 $11 22. d5 e4) 22. Bc3 $14 {[%emt 0:02:04]} h6 {[%emt 0:08:31]} 23. Kf1 {[%emt 0:01:08]} Bc7 {[%emt 0:11:07]} 24. Rd2 {[%emt 0:09:54]} cxd4 {[%emt 0:04:11]} 25. Rxd4 {[%emt 0:00:48]} e5 {[%emt 0:01:16]} 26. Rd5 {[%emt 0:00:06]} e4 {[%emt 0:00:52] [#]} 27. Rcd1 $1 {[%emt 0:02:04]} Nc5 {[%emt 0:01:08]} 28. Ne5 {[%emt 0:03:27]} Rxd5 {[%emt 0:03:26]} 29. Rxd5 {[%emt 0:00:08]} Rd8 {[%emt 0:02:12]} 30. Nc6 {[%emt 0:04:25]} Rxd5 {[%emt 0:00:37]} 31. Ne7+ {[%emt 0:00:05]} ({Much weaker is} 31. cxd5 $6 Kf7 $11) 31... Kf7 {[%emt 0:00:22]} 32. Nxd5 $16 {[%emt 0:00:05][%mdl 4096] Endgame KBN-KBN} Ne6 {[%emt 0:00:18] [#]} 33. Nb4 {[%emt 0:03:03]} (33. b3 $1 $16) 33... a5 {[%emt 0:01:46]} (33... Nc5 $14) 34. Nd5 {[%emt 0:00:05]} Bd8 $1 {[%emt 0:00:24]} 35. Be5 {[%emt 0:00:05] White is more active.} (35. Bd2 $14) 35... g5 $11 {[%emt 0:00:18]} 36. g3 {[%emt 0:01:04][%cal Rg3f4]} fxg3 {[%emt 0:01:19]} (36... Nc5 $1 $11 {remains equal.}) 37. fxg3 $16 {[%emt 0:00:43]} Nc5 {[%emt 0:01:40]} 38. Ke2 {[%emt 0:01:04] And now Bd4 would win.} b5 {[%emt 0:02:22]} ({Better is} 38... Ke6 $14 39. Bd4 Nd3) 39. Bd4 {[%emt 0:02:07]} Ne6 {[%emt 0:00:44]} 40. Ke3 {[%emt 0:00:00]} bxc4 {[%emt 0:00:00][%cal Og5g4]} 41. Kxe4 {[%emt 0:03:01]} a4 {[%emt 0:04:17]} (41... h5 $142 42. Bb6 h4) 42. Nc3 $18 {[%emt 0:02:32]} Bc7 {[%emt 0:05:02]} 43. Bf2 {[%emt 0:00:49]} ({Weaker is} 43. Nxa4 Bxg3 44. Nc3 h5 $16) 43... a3 {[%emt 0:00:42]} 44. bxa3 {[%emt 0:00:04]} Ba5 {[%emt 0:01:48]} 45. Bd4 {[%emt 0:00:08]} h5 {[%emt 0:00:36]} 46. Kd5 {[%emt 0:01:19]} h4 {[%emt 0:01:16]} 47. gxh4 {[%emt 0:04:08]} gxh4 {[%emt 0:00:48]} 48. Ne2 {[%emt 0:02:37]} (48. Kxc4 $18 {[%cal Oc4b5] is the precise move to win. aiming for Kb5!} Bd8 49. a4) 48... c3 $16 {[%emt 0:01:44][%cal Bc4c3,Bc3c2][%mdl 32]} 49. Be3 {[%emt 0:01:12]} (49. Bxc3 $142 Bxc3 50. Nxc3 Nf4+ 51. Kc6 Nxh3 52. Ne4) 49... c2 {[%emt 0:01:36]} 50. Kc4 {[%emt 0:00:06] Kd3 is the strong threat.} Bd8 {[%emt 0:00:49]} 51. Nd4 $2 {[%emt 0:05:19]} (51. Kc3 $14 {stays ahead.}) 51... Nxd4 $17 {[%emt 0:00:40]} 52. Kxd4 {[%emt 0:00:15]} Bb6+ {[%emt 0:00:22]} 53. Kd3 {[%emt 0:00:01]} Bxe3 {[%emt 0:00:10]} 54. Kxc2 {[%emt 0:00:03] Weighted Error Value: White=0.25 (precise) /Black=0.19 (very precise)} 1/2-1/2